fUSD/lending_fUSD_20260106
["ID","MTS","AMOUNT","RATE_DAILY","PERIOD"]
[400591681,1767736244014,-500.0,0.00041095,2]
[400591683,1767736244023,-500.0,0.00041095,2]
[400591685,1767736244033,-500.0,0.00041095,2]
[400591687,1767736244042,-162.71277919,0.00041095,2]
[400591689,1767736244052,-150.0,0.00041096,10]
[400591691,1767736244064,-1000.0,0.00041096,30]
[400591693,1767736244074,-1000.0,0.00041096,30]
[400591695,1767736244084,-1000.0,0.00041096,30]
[400591697,1767736244093,-1000.0,0.00041096,30]
[400591698,1767736244103,-1000.0,0.00041096,30]
[400591699,1767736244112,-1000.0,0.00041096,30]
[400591700,1767736244122,-1000.0,0.00041096,30]
[400591701,1767736244131,-828.0,0.00041096,13]
[400591702,1767736244140,-1000.0,0.00041096,30]
[400591703,1767736244149,-1000.0,0.00041096,30]
[400591704,1767736244158,-1000.0,0.00041096,30]
[400591705,1767736244168,-1000.0,0.00041096,30]
[400591706,1767736244178,-1000.0,0.00041096,30]
[400591707,1767736244187,-1000.0,0.00041096,30]
[400591708,1767736244197,-1000.0,0.00041096,30]
[400591710,1767736244206,-1000.0,0.00041096,30]
[400591712,1767736244216,-1000.0,0.00041096,30]
[400591714,1767736244225,-1000.0,0.00041096,30]
[400591716,1767736244234,-1000.0,0.00041096,30]
[400591718,1767736244243,-1000.0,0.00041096,30]
[400591720,1767736244252,-1000.0,0.00041096,30]
[400591722,1767736244261,-1000.0,0.00041096,30]
[400591724,1767736244270,-1000.0,0.00041096,30]
[400591726,1767736244279,-1000.0,0.00041096,30]
[400591728,1767736244288,-1000.0,0.00041096,30]
[400591730,1767736244297,-1000.0,0.00041096,30]
[400591732,1767736244307,-1000.0,0.00041096,30]
[400591734,1767736244315,-1000.0,0.00041096,30]
[400591736,1767736244324,-1000.0,0.00041096,30]
[400591738,1767736244333,-1000.0,0.00041096,30]
[400591740,1767736244343,-1000.0,0.00041096,30]
[400591742,1767736244353,-1000.0,0.00041096,30]
[400591744,1767736244362,-1000.0,0.00041096,30]
[400591746,1767736244371,-1000.0,0.00041096,30]
[400591748,1767736244380,-1000.0,0.00041096,30]
[400591750,1767736244389,-1000.0,0.00041096,30]
[400591752,1767736244398,-1000.0,0.00041096,30]
[400591754,1767736244407,-1000.0,0.00041096,30]
[400591756,1767736244416,-1000.0,0.00041096,30]
[400591758,1767736244425,-1000.0,0.00041096,30]
[400591760,1767736244434,-1000.0,0.00041096,30]
[400591762,1767736244443,-1000.0,0.00041096,30]
[400591764,1767736244451,-1000.0,0.00041096,30]
[400591766,1767736244461,-1000.0,0.00041096,30]
[400591768,1767736244470,-1000.0,0.00041096,30]
[400591770,1767736244479,-1000.0,0.00041096,30]
[400591772,1767736244489,-1000.0,0.00041096,30]
[400591774,1767736244498,-1000.0,0.00041096,30]
[400591776,1767736244508,-1000.0,0.00041096,30]
[400591778,1767736244517,-1000.0,0.00041096,30]
[400591779,1767736244527,-1000.0,0.00041096,30]
[400591781,1767736244536,-1000.0,0.00041096,30]
[400591783,1767736244545,-1000.0,0.00041096,30]
[400591785,1767736244554,-1000.0,0.00041096,30]
[400591787,1767736244563,-1000.0,0.00041096,30]
[400591789,1767736244572,-1000.0,0.00041096,30]
[400591791,1767736244581,-1000.0,0.00041096,30]
[400591793,1767736244590,-1000.0,0.00041096,30]
[400591795,1767736244600,-1000.0,0.00041096,30]
[400591797,1767736244609,-1000.0,0.00041096,30]
[400591799,1767736244619,-1000.0,0.00041096,30]
[400591801,1767736244627,-1000.0,0.00041096,30]
[400591803,1767736244637,-1000.0,0.00041096,30]
[400591805,1767736244646,-1000.0,0.00041096,30]
[400591807,1767736244656,-1000.0,0.00041096,30]
[400591809,1767736244665,-1000.0,0.00041096,30]
[400591811,1767736244674,-1000.0,0.00041096,30]
[400591813,1767736244683,-1000.0,0.00041096,30]
[400591815,1767736244692,-1000.0,0.00041096,30]
[400591817,1767736244701,-1000.0,0.00041096,30]
[400591819,1767736244711,-1000.0,0.00041096,30]
[400591821,1767736244721,-1000.0,0.00041096,30]
[400591824,1767736244731,-1000.0,0.00041096,30]
[400591826,1767736244740,-1000.0,0.00041096,30]
[400591827,1767736244750,-1000.0,0.00041096,30]
[400591830,1767736244759,-1000.0,0.00041096,30]
[400591832,1767736244768,-1000.0,0.00041096,30]
[400591834,1767736244778,-1000.0,0.00041096,30]
[400591836,1767736244788,-1000.0,0.00041096,30]
[400591837,1767736244797,-1000.0,0.00041096,30]
[400591839,1767736244807,-1000.0,0.00041096,30]
[400591841,1767736244816,-1000.0,0.00041096,30]
[400591843,1767736244825,-1000.0,0.00041096,30]
[400591845,1767736244834,-1000.0,0.00041096,30]
[400591847,1767736244844,-1000.0,0.00041096,30]
[400591849,1767736244853,-1000.0,0.00041096,30]
[400591852,1767736244862,-1000.0,0.00041096,30]
[400591854,1767736244872,-1000.0,0.00041096,30]
[400591856,1767736244882,-1000.0,0.00041096,30]
[400591858,1767736244892,-1000.0,0.00041096,30]
[400591860,1767736244901,-1000.0,0.00041096,30]
[400591862,1767736244911,-1000.0,0.00041096,30]
[400591864,1767736244920,-1000.0,0.00041096,30]
[400591866,1767736244929,-1000.0,0.00041096,30]
[400591868,1767736244939,-1000.0,0.00041096,30]
[400591870,1767736244952,-1000.0,0.00041096,30]
[400591871,1767736244962,-1000.0,0.00041096,30]
[400591873,1767736244971,-1000.0,0.00041096,30]
[400591875,1767736244980,-1000.0,0.00041096,30]
[400591878,1767736244991,-1000.0,0.00041096,30]
[400591880,1767736245000,-1000.0,0.00041096,30]
[400591881,1767736245010,-917.5,0.00041096,67]
[400591884,1767736245020,-972.0,0.00041096,110]
[400591886,1767736245030,-1000.0,0.000411,7]
[400591888,1767736245039,-502.0,0.00041333,15]
[400591889,1767736245048,-1353.9,0.00041353,30]
[400591891,1767736245057,-152.0,0.000414,120]
[400591893,1767736245066,-2051.8,0.00041409,30]
[400591895,1767736245075,-398.86540225,0.00041489,2]
[400591897,1767736245084,-152.0,0.000415,120]
[400591899,1767736245094,-8127.02166461,0.000415,120]
[400591901,1767736245104,-354.35678456,0.000415,30]
[400591903,1767736245113,-1000.0,0.00041586,14]
[400591905,1767736245122,-715.48,0.000416,14]
[400591907,1767736245131,-1000.0,0.000418,30]
[400591909,1767736245141,-1999.0,0.00041839,30]
[400591911,1767736245150,-164.0,0.00041852,11]
[400591913,1767736245159,-162.0,0.00041874,11]
[400591915,1767736245168,-154.98,0.00041891,14]
[400591917,1767736245177,-594.31143604,0.000419,120]
[400591919,1767736245186,-594.31143604,0.000419,120]
[400591921,1767736245195,-594.31143604,0.000419,120]
[400591923,1767736245205,-594.31143604,0.000419,120]
[400591925,1767736245214,-594.31143604,0.000419,120]
[400591927,1767736245223,-594.31143604,0.000419,120]
[400591929,1767736245234,-594.31143604,0.000419,120]
[400591931,1767736245244,-594.31143604,0.000419,120]
[400591933,1767736245253,-594.31143604,0.000419,120]
[400591935,1767736245262,-1000.0,0.000419,7]
[400591937,1767736245271,-429.1644261,0.000419,2]
[400591939,1767736245280,-214.27,0.000419,30]
[400591941,1767736245290,-500.0,0.00041913,30]
[400591943,1767736245300,-1000.0,0.00041918,30]
[400591945,1767736245309,-200.0,0.00041918,10]
[400591947,1767736245320,-3836.0,0.0004192,30]
[400591949,1767736245329,-105600.0,0.00042,7]
[400591951,1767736245338,-199.0,0.00042,2]
[400591953,1767736245347,-1021.0,0.00042,30]
[400591955,1767736245356,-791.0,0.00042,30]
[400591957,1767736245365,-1353.9,0.0004207,30]
[400591959,1767736245373,-152.0,0.000421,120]
[400591961,1767736245382,-3907.34,0.000421,14]
[400591964,1767736245391,-503.101615,0.00042112,30]
[400591966,1767736245400,-3950.83833226,0.00042183,7]
[400591968,1767736245410,-1999.0,0.00042192,30]
[400591971,1767736245420,-429.16442607,0.00042195,2]
[400591974,1767736245429,-154.98,0.00042195,14]
[400591977,1767736245438,-152.0,0.000422,120]
[400591980,1767736245447,-1008.2,0.000422,14]
[400591996,1767736245586,-3221.72,0.000422,30]
[400591998,1767736245596,-11844.77875623,0.00042347,5]
[400592000,1767736245605,-3836.0,0.00042352,30]
[400592002,1767736245614,-500.0,0.00042368,120]
[400592004,1767736245624,-500.0,0.00042368,30]
[400592006,1767736245633,-500.0,0.00042368,30]
[400592008,1767736245642,-500.0,0.00042368,120]
[400592010,1767736245651,-1307.44549202,0.000424,2]
[400592012,1767736245662,-87743.27,0.000424,2]
[400592014,1767736245671,-500.0,0.000424,30]
[400592016,1767736245680,-5960.32232019,0.00042473,14]
[400592018,1767736245689,-5960.32232019,0.00042473,14]
[400592020,1767736245698,-5960.32232019,0.00042473,14]
[400592022,1767736245708,-5960.32232019,0.00042473,14]
[400592024,1767736245718,-5960.32232019,0.00042473,14]
[400592026,1767736245728,-5960.32232019,0.00042473,14]
[400592028,1767736245737,-5960.32232019,0.00042473,14]
[400592030,1767736245747,-5960.32232019,0.00042473,14]
[400592033,1767736245756,-5960.32232019,0.00042473,14]
[400592034,1767736245766,-5960.32232019,0.00042473,14]
[400592036,1767736245775,-5960.32232019,0.00042473,14]
[400592039,1767736245785,-5960.32232019,0.00042473,14]
[400592041,1767736245794,-5960.32232019,0.00042473,14]
[400592043,1767736245803,-5960.32232019,0.00042473,14]
[400592045,1767736245813,-1488.657,0.00042479,64]
[400592047,1767736245822,-429.16442607,0.00042489,2]
[400592049,1767736245832,-160.2,0.000425,44]
[400592051,1767736245841,-3325.85,0.000425,30]
[400592053,1767736245850,-500.0,0.000425,30]
[400592055,1767736245859,-911.64,0.00042504,120]
[400592057,1767736245868,-482.51,0.00042521,30]
[400592059,1767736245877,-482.51,0.00042521,30]
[400592061,1767736245885,-482.51,0.00042521,30]
[400592062,1767736245894,-793.74,0.00042521,30]
[400592064,1767736245904,-482.51,0.00042521,30]
[400592066,1767736245913,-1132.47,0.00042521,30]
[400592069,1767736245922,-661.18,0.00042521,30]
[400592070,1767736245932,-962.62,0.00042521,30]
[400592073,1767736245944,-661.18,0.00042521,30]
[400592075,1767736245954,-482.51,0.00042521,30]
[400592077,1767736245964,-482.51,0.00042521,30]
[400592078,1767736245973,-661.18,0.00042521,30]
[400592081,1767736245983,-661.18,0.00042521,30]
[400592083,1767736245994,-482.51,0.00042521,30]
[400592084,1767736246005,-500.0,0.000426,30]
[400592088,1767736246015,-1129.45,0.00042608,2]
[400592090,1767736246024,-620.0,0.00042657,30]
[400592093,1767736246034,-642.94,0.00042657,30]
[400592096,1767736246044,-666.72878,0.00042657,30]
[400592099,1767736246053,-691.39774486,0.00042657,30]
[400592101,1767736246062,-716.97946142,0.00042657,30]
[400592103,1767736246072,-381.95401372,0.00042657,30]
[400592105,1767736246082,-500.0,0.00042657,30]
[400592107,1767736246094,-500.0,0.00042657,30]
[400592109,1767736246103,-500.0,0.00042657,30]
[400592111,1767736246112,-500.0,0.00042657,30]
[400592113,1767736246120,-500.0,0.00042657,30]
[400592115,1767736246129,-500.0,0.00042657,30]
[400592117,1767736246138,-500.0,0.00042657,30]
[400592119,1767736246147,-500.0,0.00042657,30]
[400592121,1767736246155,-500.0,0.00042657,30]
[400592122,1767736246164,-500.0,0.00042657,30]
[400592125,1767736246174,-500.0,0.00042657,30]
[400592127,1767736246183,-500.0,0.00042657,30]
[400592129,1767736246192,-500.0,0.00042657,30]
[400592130,1767736246201,-500.0,0.00042657,30]
[400592133,1767736246210,-500.0,0.00042657,30]
[400592135,1767736246219,-500.0,0.00042657,30]
[400592136,1767736246228,-500.0,0.00042657,30]
[400592139,1767736246238,-500.0,0.00042657,30]
[400592141,1767736246248,-500.0,0.00042657,30]
[400592142,1767736246257,-500.0,0.00042657,30]
[400592145,1767736246266,-988.0,0.00042657,30]
[400592146,1767736246277,-988.0,0.00042657,30]
[400592149,1767736246286,-427.66422955,0.00042657,30]
[400592151,1767736246295,-500.0,0.00042657,30]
[400592152,1767736246305,-500.0,0.00042657,30]
[400592155,1767736246315,-500.0,0.00042657,30]
[400592157,1767736246325,-151.0,0.00042657,30]
[400592159,1767736246335,-500.0,0.00042657,30]
[400592161,1767736246344,-156.587,0.00042657,30]
[400592163,1767736246354,-500.0,0.00042657,30]
[400592164,1767736246363,-162.380719,0.00042657,30]
[400592166,1767736246372,-500.0,0.00042657,30]
[400592168,1767736246382,-168.3888056,0.00042657,30]
[400592170,1767736246391,-500.0,0.00042657,30]
[400592172,1767736246400,-174.61919141,0.00042657,30]
[400592175,1767736246409,-500.0,0.00042657,30]
[400592177,1767736246419,-181.08010149,0.00042657,30]
[400592178,1767736246428,-187.78006525,0.00042657,30]
[400592180,1767736246438,-500.0,0.00042657,30]
[400592183,1767736246447,-194.72792766,0.00042657,30]
[400592185,1767736246456,-600.0,0.00042657,30]
[400592187,1767736246466,-500.0,0.00042657,30]
[400592189,1767736246475,-201.93286099,0.00042657,30]
[400592190,1767736246485,-600.0,0.00042657,30]
[400592192,1767736246494,-500.0,0.00042657,30]
[400592194,1767736246503,-209.40437684,0.00042657,30]
[400592197,1767736246512,-702.5991064,0.00042657,30]
[400592199,1767736246522,-217.15233878,0.00042657,30]
[400592201,1767736246531,-225.18697532,0.00042657,30]
[400592203,1767736246542,-233.51889341,0.00042657,30]
[400592204,1767736246551,-242.15909246,0.00042657,30]
[400592207,1767736246560,-251.11897888,0.00042657,30]
[400592209,1767736246569,-260.4103811,0.00042657,30]
[400592210,1767736246579,-270.0455652,0.00042657,30]
[400592213,1767736246588,-181.4121269,0.00042657,30]
[400592215,1767736246598,-151.0,0.00042657,30]
[400592216,1767736246608,-151.0,0.00042657,30]
[400592219,1767736246618,-151.0,0.00042657,30]
[400592221,1767736246627,-172.2106957,0.00042657,30]
[400592223,1767736246637,-151.0,0.00042657,30]
[400592225,1767736246647,-414.0,0.00042657,30]
[400592227,1767736246657,-154.5673259,0.00042657,30]
[400592229,1767736246666,-429.318,0.00042657,30]
[400592230,1767736246676,-445.202766,0.00042657,30]
[400592232,1767736246686,-461.67526834,0.00042657,30]
[400592233,1767736246695,-478.75725327,0.00042657,30]
[400592234,1767736246704,-496.47127164,0.00042657,30]
[400592235,1767736246713,-250.0,0.00042657,30]
[400592236,1767736246722,-514.84070869,0.00042657,30]
[400592237,1767736246732,-250.0,0.00042657,30]
[400592238,1767736246741,-533.88981491,0.00042657,30]
[400592239,1767736246751,-250.0,0.00042657,30]
[400592240,1767736246760,-250.0,0.00042657,30]
[400592241,1767736246770,-250.0,0.00042657,30]
[400592242,1767736246779,-553.64373807,0.00042657,30]
[400592243,1767736246788,-250.0,0.00042657,30]
[400592244,1767736246797,-574.12855637,0.00042657,30]
[400592246,1767736246807,-250.0,0.00042657,30]
[400592248,1767736246816,-595.37131296,0.00042657,30]
[400592250,1767736246825,-250.0,0.00042657,30]
[400592252,1767736246835,-617.40005154,0.00042657,30]
[400592254,1767736246845,-250.0,0.00042657,30]
[400592256,1767736246855,-640.24385345,0.00042657,30]
[400592258,1767736246864,-250.0,0.00042657,30]
[400592260,1767736246874,-663.93287602,0.00042657,30]
[400592262,1767736246883,-250.0,0.00042657,30]
[400592264,1767736246894,-688.49839244,0.00042657,30]
[400592266,1767736246903,-250.0,0.00042657,30]
[400592268,1767736246913,-713.97283296,0.00042657,30]
[400592270,1767736246923,-250.0,0.00042657,30]
[400592272,1767736246932,-740.38982778,0.00042657,30]
[400592274,1767736246943,-250.0,0.00042657,30]
[400592276,1767736246953,-767.7842514,0.00042657,30]
[400592278,1767736246963,-388.87510441,0.00042657,30]
[400592281,1767736246973,-796.19226871,0.00042657,30]
[400592282,1767736246982,-825.65138265,0.00042657,30]
[400592285,1767736246993,-500.0,0.00042657,30]
[400592287,1767736247003,-500.0,0.00042657,30]
[400592289,1767736247012,-500.0,0.00042657,30]
[400592291,1767736247024,-500.0,0.00042657,30]
[400592293,1767736247033,-500.0,0.00042657,30]
[400592295,1767736247043,-500.0,0.00042657,30]
[400592297,1767736247052,-151.0,0.00042657,30]
[400592299,1767736247062,-250.0,0.00042657,30]
[400592301,1767736247072,-500.0,0.00042657,30]
[400592303,1767736247082,-500.0,0.00042657,30]
[400592305,1767736247091,-156.587,0.00042657,30]
[400592307,1767736247100,-250.0,0.00042657,30]
[400592309,1767736247109,-500.0,0.00042657,30]
[400592311,1767736247119,-500.0,0.00042657,30]
[400592313,1767736247128,-250.0,0.00042657,30]
[400592315,1767736247140,-162.380719,0.00042657,30]
[400592317,1767736247150,-327.01671574,0.00042657,30]
[400592319,1767736247159,-500.0,0.00042657,30]
[400592321,1767736247169,-250.0,0.00042657,30]
[400592323,1767736247179,-168.3888056,0.00042657,30]
[400592325,1767736247189,-250.0,0.00042657,30]
[400592327,1767736247199,-500.0,0.00042657,30]
[400592329,1767736247208,-174.61919141,0.00042657,30]
[400592331,1767736247217,-250.0,0.00042657,30]
[400592333,1767736247227,-500.0,0.00042657,30]
[400592335,1767736247237,-250.0,0.00042657,30]
[400592337,1767736247247,-500.0,0.00042657,30]
[400592339,1767736247257,-181.08010149,0.00042657,30]
[400592341,1767736247266,-250.0,0.00042657,30]
[400592343,1767736247275,-500.0,0.00042657,30]
[400592345,1767736247285,-187.78006525,0.00042657,30]
[400592347,1767736247294,-250.0,0.00042657,30]
[400592349,1767736247304,-500.0,0.00042657,30]
[400592351,1767736247313,-194.72792766,0.00042657,30]
[400592353,1767736247322,-250.0,0.00042657,30]
[400592355,1767736247332,-500.0,0.00042657,30]
[400592357,1767736247342,-250.0,0.00042657,30]
[400592359,1767736247352,-151.0,0.00042657,30]
[400592361,1767736247362,-201.93286099,0.00042657,30]
[400592363,1767736247371,-500.0,0.00042657,30]
[400592365,1767736247380,-250.0,0.00042657,30]
[400592367,1767736247390,-151.0,0.00042657,30]
[400592369,1767736247399,-300.0,0.00042657,30]
[400592371,1767736247408,-209.40437684,0.00042657,30]
[400592373,1767736247418,-500.0,0.00042657,30]
[400592375,1767736247427,-250.0,0.00042657,30]
[400592390,1767736247563,-151.0,0.00042657,30]
[400592392,1767736247573,-217.15233878,0.00042657,30]
[400592394,1767736247582,-500.0,0.00042657,30]
[400592396,1767736247591,-250.0,0.00042657,30]
[400592398,1767736247600,-311.1,0.00042657,30]
[400592400,1767736247610,-254.61404146,0.00042657,30]
[400592402,1767736247619,-225.18697532,0.00042657,30]
[400592404,1767736247628,-500.0,0.00042657,30]
[400592406,1767736247638,-250.0,0.00042657,30]
[400592408,1767736247647,-322.6107,0.00042657,30]
[400592410,1767736247657,-233.51889341,0.00042657,30]
[400592412,1767736247667,-500.0,0.00042657,30]
[400592414,1767736247677,-250.0,0.00042657,30]
[400592416,1767736247687,-334.5472959,0.00042657,30]
[400592418,1767736247696,-242.15909246,0.00042657,30]
[400592420,1767736247705,-500.0,0.00042657,30]
[400592422,1767736247715,-250.0,0.00042657,30]
[400592424,1767736247725,-346.92554585,0.00042657,30]
[400592426,1767736247735,-251.11897888,0.00042657,30]
[400592428,1767736247744,-500.0,0.00042657,30]
[400592430,1767736247755,-250.0,0.00042657,30]
[400592433,1767736247765,-359.76179104,0.00042657,30]
[400592435,1767736247775,-260.4103811,0.00042657,30]
[400592437,1767736247784,-500.0,0.00042657,30]
[400592439,1767736247794,-373.07297731,0.00042657,30]
[400592441,1767736247803,-250.0,0.00042657,30]
[400592443,1767736247813,-296.92956875,0.00042657,30]
[400592445,1767736247822,-500.0,0.00042657,30]
[400592447,1767736247831,-386.87667747,0.00042657,30]
[400592448,1767736247840,-250.0,0.00042657,30]
[400592450,1767736247850,-401.19111454,0.00042657,30]
[400592452,1767736247860,-294.6357062,0.00042657,30]
[400592454,1767736247869,-500.0,0.00042657,30]
[400592456,1767736247878,-481.04223908,0.00042657,30]
[400592458,1767736247887,-500.0,0.00042657,30]
[400592461,1767736247896,-250.0,0.00042657,30]
[400592463,1767736247906,-151.0,0.00042657,30]
[400592464,1767736247915,-500.0,0.00042657,30]
[400592466,1767736247924,-250.0,0.00042657,30]
[400592468,1767736247933,-250.0,0.00042657,30]
[400592470,1767736247944,-500.0,0.00042657,30]
[400592472,1767736247954,-151.0,0.00042657,30]
[400592474,1767736247964,-500.0,0.00042657,30]
[400592476,1767736247973,-250.0,0.00042657,30]
[400592478,1767736247984,-500.0,0.00042657,30]
[400592480,1767736247994,-518.5,0.00042657,30]
[400592482,1767736248003,-250.0,0.00042657,30]
[400592484,1767736248013,-151.0,0.00042657,30]
[400592486,1767736248024,-500.0,0.00042657,30]
[400592488,1767736248033,-500.0,0.00042657,30]
[400592490,1767736248042,-250.0,0.00042657,30]
[400592492,1767736248051,-151.0,0.00042657,30]
[400592494,1767736248060,-500.0,0.00042657,30]
[400592496,1767736248070,-537.6845,0.00042657,30]
[400592498,1767736248080,-250.0,0.00042657,30]
[400592500,1767736248089,-151.0,0.00042657,30]
[400592502,1767736248099,-500.0,0.00042657,30]
[400592504,1767736248109,-557.5788265,0.00042657,30]
[400592506,1767736248119,-500.0,0.00042657,30]
[400592509,1767736248128,-250.0,0.00042657,30]
[400592511,1767736248138,-151.0,0.00042657,30]
[400592513,1767736248147,-500.0,0.00042657,30]
[400592514,1767736248157,-578.20924308,0.00042657,30]
[400592516,1767736248167,-500.0,0.00042657,30]
[400592518,1767736248176,-151.0,0.00042657,30]
[400592520,1767736248185,-500.0,0.00042657,30]
[400592523,1767736248197,-599.60298507,0.00042657,30]
[400592524,1767736248206,-500.0,0.00042657,30]
[400592526,1767736248215,-151.0,0.00042657,30]
[400592528,1767736248224,-500.0,0.00042657,30]
[400592530,1767736248234,-621.78829552,0.00042657,30]
[400592533,1767736248244,-500.0,0.00042657,30]
[400592535,1767736248254,-151.0,0.00042657,30]
[400592537,1767736248263,-500.0,0.00042657,30]
[400592539,1767736248273,-153.47713145,0.00042657,30]
[400592541,1767736248282,-500.0,0.00042657,30]
[400592543,1767736248292,-151.0,0.00042657,30]
[400592545,1767736248302,-500.0,0.00042657,30]
[400592547,1767736248312,-151.0,0.00042657,30]
[400592549,1767736248321,-500.0,0.00042657,30]
[400592551,1767736248330,-250.0,0.00042657,30]
[400592553,1767736248339,-151.0,0.00042657,30]
[400592555,1767736248349,-500.0,0.00042657,30]
[400592557,1767736248358,-250.0,0.00042657,30]
[400592559,1767736248368,-151.0,0.00042657,30]
[400592561,1767736248377,-500.0,0.00042657,30]
[400592563,1767736248386,-250.0,0.00042657,30]
[400592565,1767736248395,-151.0,0.00042657,30]
[400592567,1767736248404,-500.0,0.00042657,30]
[400592569,1767736248413,-250.0,0.00042657,30]
[400592571,1767736248427,-151.0,0.00042657,30]
[400592574,1767736248448,-500.0,0.00042657,30]
[400592577,1767736248466,-500.0,0.00042657,30]
[400592580,1767736248485,-250.0,0.00042657,30]
[400592583,1767736248501,-151.0,0.00042657,30]
[400592586,1767736248517,-500.0,0.00042657,30]
[400592589,1767736248535,-500.0,0.00042657,30]
[400592592,1767736248554,-250.0,0.00042657,30]
[400592595,1767736248573,-151.0,0.00042657,30]
[400592598,1767736248591,-500.0,0.00042657,30]
[400592601,1767736248608,-500.0,0.00042657,30]
[400592604,1767736248626,-250.0,0.00042657,30]
[400592606,1767736248640,-151.0,0.00042657,30]
[400592609,1767736248658,-555.93,0.00042658,30]
[400592612,1767736248671,-152.45,0.00042658,30]
[400592614,1767736248685,-171.25,0.00042658,30]
[400592617,1767736248701,-555.93,0.00042658,30]
[400592619,1767736248715,-171.25,0.00042658,30]
[400592622,1767736248730,-555.93,0.00042658,30]
[400592624,1767736248745,-171.25,0.00042658,30]
[400592627,1767736248759,-555.93,0.00042658,30]
[400592630,1767736248773,-171.25,0.00042658,30]
[400592632,1767736248787,-555.03,0.00042658,30]
[400592635,1767736248802,-150.0,0.00042658,30]
[400592637,1767736248816,-178.99,0.00042658,30]
[400592640,1767736248831,-167.48,0.00042658,30]
[400592642,1767736248845,-155.21,0.00042658,30]
[400592645,1767736248859,-466.43,0.00042658,30]
[400592648,1767736248874,-1184.56,0.00042658,30]
[400592651,1767736248892,-171.25,0.00042658,30]
[400592653,1767736248906,-466.43,0.00042658,30]
[400592656,1767736248921,-178.99,0.00042658,30]
[400592658,1767736248935,-171.25,0.00042658,30]
[400592661,1767736248951,-150.0,0.00042658,30]
[400592663,1767736248967,-466.43,0.00042658,30]
[400592666,1767736248981,-171.25,0.00042658,30]
[400592668,1767736248995,-178.99,0.00042658,30]
[400592671,1767736249013,-466.43,0.00042658,30]
[400592673,1767736249028,-178.99,0.00042658,30]
[400592676,1767736249042,-171.25,0.00042658,30]
[400592679,1767736249058,-150.0,0.00042658,30]
[400592681,1767736249073,-466.43,0.00042658,30]
[400592684,1767736249087,-300.0,0.00042682,2]
[400592686,1767736249102,-152.0,0.000427,120]
[400592688,1767736249117,-362.85890571,0.000427,30]
[400592689,1767736249131,-1000.0,0.000427,7]
[400592690,1767736249146,-715.48,0.000427,14]
[400592691,1767736249161,-87743.27,0.000427,2]
[400592692,1767736249177,-500.0,0.000427,30]
[400592693,1767736249193,-152.53735496,0.00042721,14]
[400592694,1767736249208,-250.0,0.0004274,10]
[400592697,1767736249224,-163.25248251,0.0004274,120]
[400592699,1767736249238,-507.465941,0.0004274,10]
[400592702,1767736249253,-300.0,0.00042755,2]
[400592705,1767736249267,-502.0,0.00042766,16]
[400592707,1767736249282,-300.0,0.00042779,2]
[400592710,1767736249297,-429.16442607,0.00042784,2]
[400592712,1767736249311,-3836.0,0.00042784,30]
[400592715,1767736249326,-1353.9,0.00042787,30]
[400592717,1767736249340,-300.0,0.0004279,2]
[400592720,1767736249355,-300.0,0.00042797,2]
[400592723,1767736249369,-162.47850535,0.000428,120]